bitfinex-derivatives/quotes_BNBF0:USTF0_20250709
["timestamp","ask_amount","ask_price","bid_price","bid_amount"]
[1752077683332,1.69332518,663.38,662.91,2.474]
[1752077683834,1.69332518,663.39,662.91,2.474]
[1752077692242,1.69332518,663.37,662.91,2.474]
[1752077694345,1.69332518,663.36,662.91,2.474]
[1752077694649,1.69332518,663.37,662.91,2.474]
[1752077695152,1.69332518,663.35,662.91,2.474]
[1752077698246,1.69332518,663.35,662.91,4.16671194]
[1752077698448,1.69332518,663.36,662.92,1.69271194]
[1752077698648,1.69332518,663.38,662.91,2.474]
[1752077698848,1.69332518,663.39,662.91,2.474]
[1752077703358,1.69332518,663.38,662.91,2.474]
[1752077707562,1.69332518,663.37,662.91,2.474]
[1752077708661,1.69332518,663.36,662.91,4.16671194]
[1752077708864,1.69332518,663.36,662.91,1.69271194]
[1752077709159,1.69332518,663.36,662.63,3.63924633]
[1752077709160,1.69332518,663.35,662.92,1.69271194]
[1752077710465,1.69332518,663.35,662.93,1.69271194]
[1752077711165,1.69332518,663.35,662.92,1.69271194]
[1752077711862,1.69332518,663.36,662.91,1.69271194]
[1752077712465,1.69332518,663.36,662.92,1.669]
[1752077713467,1.69332518,663.36,662.92,3.36171194]
[1752077713661,1.69332518,663.36,662.92,1.669]
[1752077714265,1.69332518,663.35,662.92,3.36171194]
[1752077714763,1.69332518,663.36,662.92,1.669]
[1752077715463,1.69332518,663.35,662.92,3.36171194]
[1752077715666,1.69332518,663.36,662.92,1.669]
[1752077716465,1.69332518,663.37,662.92,3.36171194]
[1752077716665,1.69332518,663.4,662.92,1.669]
[1752077721776,1.69332518,663.39,662.92,1.669]
[1752077726478,1.69332518,663.35,662.95,1.69271194]
[1752077729177,1.69332518,663.35,662.94,1.69271194]
[1752077729382,1.69332518,663.35,662.93,1.69271194]
[1752077731480,1.69332518,663.35,662.94,1.69271194]
[1752077733276,1.69332518,663.34,662.94,1.69271194]
[1752077733478,1.69332518,663.35,662.94,1.69271194]
[1752077734383,1.69332518,663.33,662.97,1.69271194]
[1752077739081,1.69332518,663.32,662.98,1.69271194]
[1752077740382,1.69332518,663.32,662.97,1.69271194]
[1752077740985,1.69332518,663.33,662.97,1.69271194]
[1752077742988,1.69332518,663.34,662.95,1.69271194]
[1752077745585,1.69332518,663.34,662.94,1.69271194]
[1752077746489,1.69332518,663.35,662.94,1.69271194]
[1752077746891,1.69332518,663.35,662.93,1.69271194]
[1752077747690,1.69332518,663.35,662.94,1.69271194]
[1752077749292,1.69332518,663.34,662.94,1.69271194]
[1752077749787,1.69332518,663.35,662.93,1.69271194]
[1752077750386,1.69332518,663.36,662.92,1.669]
[1752077751688,1.69332518,663.34,662.92,1.669]
[1752077753592,1.69332518,663.33,662.92,1.669]
[1752077756297,5.653936,664.26,662.92,1.669]
[1752077756298,1.69332518,663.35,662.92,1.669]
[1752077757395,1.69332518,663.32,662.92,1.669]
[1752077761601,1.69519567,663.32,662.92,1.669]
[1752077762303,1.69519567,663.33,662.92,1.669]
[1752077762600,1.69519567,663.32,662.92,1.669]
[1752077765304,1.69519567,663.33,662.92,1.669]
[1752077766100,1.69519567,663.3,662.92,1.669]
[1752077767611,1.69519567,663.29,662.92,1.669]
[1752077768311,1.69519567,663.3,662.92,1.669]
[1752077770929,1.69519567,663.29,662.92,1.669]
[1752077772118,1.69519567,663.28,662.92,1.669]
[1752077772517,1.69519567,663.28,662.83,1.69507907]
[1752077773917,2.25143583,663.4,662.69,0.26239694]
[1752077773918,1.69519567,663.29,662.81,1.69507907]
[1752077774214,1.69519567,663.3,662.81,1.69507907]
[1752077774612,1.69519567,663.3,662.82,1.69507907]
[1752077775217,2.25143583,663.42,662.83,2.063]
[1752077775218,1.69519567,663.29,662.83,2.063]
[1752077775517,1.69519567,663.28,662.83,2.063]
[1752077779223,1.69519567,663.29,662.83,2.063]
[1752077779820,1.69519567,663.28,662.83,2.063]
[1752077781527,1.69519567,663.3,662.83,2.063]
[1752077783929,1.69519567,663.29,662.83,2.063]
[1752077784731,1.69519567,663.28,662.83,2.063]
[1752077785228,1.69519567,663.29,662.83,2.063]
[1752077788229,1.69519567,663.3,662.83,2.063]
[1752077789234,1.69519567,663.29,662.83,2.063]
[1752077790533,1.69519567,663.3,662.83,2.063]
[1752077791436,1.69519567,663.29,662.83,2.063]
[1752077795235,1.69519567,663.28,662.83,2.063]
[1752077796741,1.69519567,663.31,662.83,2.063]
[1752077798045,1.69519567,663.3,662.83,2.063]
[1752077799745,2.25143583,663.45,662.83,2.063]
[1752077799746,1.69519567,663.31,662.83,2.063]
[1752077800142,1.69519567,663.3,662.83,2.063]
[1752077803545,1.69519567,663.28,662.83,2.063]
[1752077805147,1.69519567,663.27,662.83,2.063]
[1752077806652,1.69519567,663.25,662.83,2.063]
[1752077808759,1.69519567,663.18,662.83,2.063]
[1752077809159,1.69519567,663.17,662.83,2.063]
[1752077809356,1.69519567,663.18,662.83,2.063]
[1752077809558,1.69519567,663.17,662.83,2.063]
[1752077809757,1.69519567,663.16,662.83,2.063]
[1752077811355,1.69519567,663.17,662.83,2.063]
[1752077813762,1.69519567,663.18,662.83,2.063]
[1752077817461,1.69519567,663.19,662.83,2.063]
[1752077818165,1.69519567,663.18,662.83,2.063]
[1752077819461,1.69519567,663.19,662.83,2.063]
[1752077822263,1.69519567,663.19,662.67,1.69507907]
[1752077822463,1.69519567,663.19,662.66,1.69507907]
[1752077822664,1.69519567,663.18,662.68,1.69507907]
[1752077823065,1.69519567,663.19,662.67,1.69507907]
[1752077825669,1.69519567,663.19,662.68,2.457]
[1752077826468,1.69519567,663.24,662.71,1.69507907]
[1752077827272,1.69519567,663.23,662.72,1.69507907]
[1752077829775,1.69519567,663.25,662.7,1.69507907]
[1752077830877,1.69519567,663.24,662.7,1.69507907]
[1752077831273,1.69519567,663.24,662.69,1.69507907]
[1752077833477,1.69519567,663.24,662.7,1.69507907]
[1752077835477,1.69519567,663.23,662.7,1.69507907]
[1752077836283,1.69519567,663.25,662.68,4.15207907]
[1752077837690,1.69519567,663.24,662.69,1.69507907]
[1752077837880,1.69519567,663.28,662.73,1.69507907]
[1752077838984,1.69519567,663.27,662.73,1.69507907]
[1752077839281,1.69519567,663.28,662.74,1.69507907]
[1752077839785,1.69519567,663.33,662.79,1.69507907]
[1752077840284,1.69519567,663.34,662.78,1.69507907]
[1752077841281,1.69519567,663.38,662.83,1.69507907]
[1752077841485,1.69519567,663.39,662.82,1.69507907]
[1752077842692,1.69519567,663.37,662.85,1.69507907]
[1752077843284,1.69519567,663.38,662.86,1.69507907]
[1752077843485,1.69519567,663.38,662.85,1.69507907]
[1752077843983,1.69519567,663.38,662.86,1.69507907]
[1752077844891,1.69519567,663.42,662.9,1.69507907]
[1752077845297,5.653936,664.19,662.89,1.69507907]
[1752077845298,1.69519567,663.43,662.89,1.69507907]
[1752077846288,1.69519567,663.44,662.89,1.69507907]
[1752077847294,1.69519567,663.44,662.88,1.69507907]
[1752077848290,1.69519567,663.45,662.87,1.69507907]
[1752077849191,1.69519567,663.45,662.88,1.69507907]
[1752077849394,1.69519567,663.45,662.87,1.69507907]
[1752077850188,1.69519567,663.44,662.89,1.69507907]
[1752077850889,1.69519567,663.45,662.88,1.69507907]
[1752077851489,1.69519567,663.46,662.89,1.69507907]
[1752077851689,1.69519567,663.45,662.9,1.69507907]
[1752077852391,1.69519567,663.46,662.89,1.69507907]
[1752077854890,1.69519567,663.47,662.89,1.69507907]
[1752077855294,1.69519567,663.47,662.88,1.69507907]
[1752077857296,1.69519567,663.48,662.87,1.69507907]
[1752077857793,1.69519567,663.47,662.88,1.69507907]
[1752077857993,1.69519567,663.48,662.88,1.69507907]
[1752077858395,1.69519567,663.48,662.87,1.69507907]
[1752077859293,2.25143583,663.59,662.76,2.25123293]
[1752077859596,1.68925406,663.48,662.87,1.68894552]
[1752077860499,1.68925406,663.49,662.86,1.68894552]
[1752077861293,1.68925406,663.5,662.85,1.68894552]
[1752077864696,1.68925406,663.51,662.84,1.68894552]
[1752077865402,1.68925406,663.51,662.83,1.68894552]
[1752077865600,1.68925406,663.52,662.83,1.68894552]
[1752077866103,1.68925406,663.62,662.68,4.14594552]
[1752077866304,1.68925406,663.62,662.68,2.457]
[1752077868506,1.68925406,663.63,662.68,2.457]
[1752077870806,2.25143583,663.85,662.68,2.457]
[1752077871009,1.68826949,663.63,662.68,2.457]
[1752077871309,1.68826949,663.62,662.68,2.457]
[1752077872509,1.68826949,663.63,662.68,2.457]
[1752077873205,1.68826949,663.59,662.68,2.457]
[1752077873406,1.68826949,663.58,662.68,2.457]
[1752077874309,1.68826949,663.57,662.68,2.457]
[1752077876112,1.68826949,663.52,662.69,1.68768112]
[1752077876312,1.68826949,663.48,662.75,1.68768112]
[1752077878213,1.68826949,663.48,662.76,1.68768112]
[1752077878413,1.68826949,663.47,662.76,1.68768112]
[1752077879314,1.68826949,663.47,662.77,1.68768112]
[1752077879514,1.68826949,663.43,662.73,1.68768112]
[1752077880313,1.68826949,663.45,662.71,1.68768112]
[1752077881211,1.68826949,663.44,662.71,1.68768112]
[1752077881910,1.68826949,663.44,662.72,1.68768112]
[1752077883515,1.68826949,663.43,662.72,1.68768112]
[1752077883714,1.68826949,663.43,662.73,1.68768112]
[1752077884418,1.68826949,663.42,662.74,1.68768112]
[1752077885419,1.68826949,663.42,662.75,2.042]
[1752077887320,1.68826949,663.41,662.75,3.72968112]
[1752077889317,1.68826949,663.41,662.76,1.68768112]
[1752077889621,2.25143583,663.56,662.75,2.042]
[1752077889819,1.69140118,663.4,662.76,1.69098283]
[1752077890024,1.69140118,663.38,662.8,1.69098283]
[1752077890322,1.69140118,663.37,662.81,1.69098283]
[1752077891718,1.69140118,663.36,662.8,1.69098283]
[1752077892516,1.69140118,663.36,662.81,1.69098283]
[1752077893222,1.69140118,663.35,662.81,1.69098283]
[1752077895623,1.69140118,663.34,662.83,1.69098283]
[1752077896125,1.69140118,663.35,662.82,1.69098283]
[1752077896427,1.69140118,663.34,662.82,1.69098283]
[1752077897322,1.69140118,663.33,662.83,1.69098283]
[1752077898725,1.69140118,663.33,662.84,1.69098283]
[1752077898924,1.69140118,663.32,662.85,1.69098283]
[1752077899623,1.69140118,663.32,662.86,1.69098283]
[1752077901028,1.69140118,663.32,662.85,1.69098283]
[1752077901323,1.69140118,663.32,662.86,1.69098283]
[1752077906036,1.69140118,663.31,662.88,1.69098283]
[1752077910433,1.69140118,663.31,662.87,1.69098283]
[1752077911338,1.69140118,663.3,662.87,1.69098283]
[1752077911533,1.69140118,663.31,662.87,1.69098283]
[1752077913433,1.69140118,663.3,662.87,1.69098283]
[1752077915339,1.69140118,663.3,662.88,1.69098283]
[1752077915741,1.69140118,663.3,662.87,1.69098283]
[1752077917936,1.69140118,663.31,662.87,1.69098283]
[1752077918442,1.69140118,663.3,662.87,1.69098283]
[1752077918741,1.69140118,663.31,662.87,1.69098283]
[1752077919443,1.69140118,663.3,662.87,1.69098283]
[1752077920143,1.69140118,663.3,662.76,2.25123293]
[1752077920144,1.69140118,663.3,662.88,1.69098283]
[1752077922445,1.69140118,663.29,662.88,1.69098283]
[1752077923241,1.69140118,663.29,662.89,1.69098283]
[1752077924041,1.69140118,663.31,662.87,1.69098283]
[1752077924445,1.69140118,663.31,662.86,1.69098283]
[1752077925143,1.69140118,663.32,662.86,1.69098283]
[1752077925342,1.69140118,663.31,662.86,1.69098283]
[1752077926448,1.69140118,663.31,662.75,2.042]
[1752077926449,1.69140118,663.32,662.85,1.69098283]
[1752077928546,1.69485221,663.32,662.85,1.69442195]
[1752077928959,1.69485221,663.33,662.85,1.69442195]
[1752077929449,1.69485221,663.33,662.87,1.69442195]
[1752077929749,1.69485221,663.34,662.86,1.69442195]
[1752077931345,1.69485221,663.33,662.86,1.69442195]
[1752077931646,1.69485221,663.33,662.87,1.69442195]
[1752077931950,1.69485221,663.32,662.87,1.69442195]
[1752077933947,1.69485221,663.32,662.86,1.69442195]
[1752077934149,1.69485221,663.32,662.87,1.69442195]
[1752077935549,1.69485221,663.31,662.88,1.69442195]
[1752077935750,1.69485221,663.31,662.88,4.02142195]
[1752077936152,1.69485221,663.31,662.89,1.69442195]
[1752077936748,1.69485221,663.32,662.88,2.327]
[1752077937448,1.69485221,663.38,662.93,1.69442195]
[1752077938353,1.69485221,663.39,662.93,1.69442195]
[1752077938848,1.69485221,663.38,662.93,1.69442195]
[1752077940149,1.69485221,663.39,662.93,1.69442195]
[1752077940452,1.69485221,663.42,662.88,4.02142195]
[1752077942353,1.69485221,663.42,662.88,2.327]
[1752077942651,1.69485221,663.43,662.88,4.02142195]
[1752077943551,1.69485221,663.43,662.88,2.327]
[1752077944961,1.69485221,663.44,662.88,2.327]
[1752077946662,1.69485221,663.44,662.88,4.02142195]
[1752077948260,1.69485221,663.44,662.88,2.327]
[1752077948964,1.69485221,663.44,662.88,4.02142195]
[1752077950264,1.69485221,663.39,662.95,1.69442195]
[1752077951264,1.69485221,663.39,662.94,1.69442195]
[1752077951465,1.69485221,663.4,662.94,1.69442195]
[1752077952271,1.69485221,663.4,662.95,1.69442195]
[1752077952467,1.69485221,663.41,662.95,1.69442195]
[1752077953167,1.69485221,663.41,662.94,1.69442195]
[1752077953367,1.69485221,663.42,662.93,1.69442195]
[1752077956167,1.69485221,663.43,662.92,1.69442195]
[1752077956368,1.69485221,663.43,662.91,1.69442195]
[1752077957369,1.69485221,663.43,662.92,1.69442195]
[1752077957969,1.69485221,663.44,662.93,1.69442195]
[1752077958569,1.69485221,663.45,662.93,1.69442195]
[1752077958775,1.69485221,663.44,662.92,1.69442195]
[1752077959766,1.69485221,663.45,662.93,1.69442195]
[1752077961271,1.69485221,663.45,662.92,1.69442195]
[1752077961769,1.69485221,663.45,662.93,1.69442195]
[1752077962272,1.69485221,663.45,662.92,1.69442195]
[1752077962469,1.69485221,663.53,663.0,1.69442195]
[1752077963170,2.25143583,663.67,662.88,2.327]
[1752077963374,1.69274182,663.53,663.0,1.69139751]
[1752077964375,1.69274182,663.54,662.99,1.69139751]
[1752077964576,1.69274182,663.53,663.0,1.69139751]
[1752077965374,1.69274182,663.54,663.0,1.69139751]
[1752077966274,1.69274182,663.54,662.99,1.69139751]
[1752077966676,1.69274182,663.54,663.0,1.69139751]
[1752077968177,1.69274182,663.55,662.98,1.69139751]
[1752077968381,1.69274182,663.56,662.97,1.69139751]
[1752077968881,1.69274182,663.55,662.99,1.69139751]
[1752077969282,1.69274182,663.56,662.97,1.69139751]
[1752077969977,1.69274182,663.57,662.96,1.69139751]
[1752077970276,1.69274182,663.56,662.96,1.69139751]
[1752077970480,1.69274182,663.57,662.96,1.69139751]
[1752077971277,1.69274182,663.57,662.95,1.69139751]
[1752077972479,1.69274182,663.57,662.94,1.69139751]
[1752077974084,1.69274182,663.57,662.95,1.69139751]
[1752077974284,1.69274182,663.57,662.94,1.69139751]
[1752077974487,1.69274182,663.57,662.95,1.69139751]
[1752077974980,1.69116822,663.57,662.95,1.68983273]
[1752077975285,1.69116822,663.57,662.94,1.68983273]
[1752077975583,1.69116822,663.57,662.95,1.68983273]
[1752077976388,1.69116822,663.57,662.94,1.68983273]
[1752077976685,1.69116822,663.57,662.95,1.68983273]
[1752077977285,1.69116822,663.57,662.94,1.68983273]
[1752077977782,1.69116822,663.6,662.9,1.68983273]
[1752077978287,1.69116822,663.6,662.91,1.68983273]
[1752077979085,1.69116822,663.59,662.91,1.68983273]
[1752077979385,1.69116822,663.6,662.91,1.68983273]
[1752077980389,1.69116822,663.59,662.91,1.68983273]
[1752077981184,1.69116822,663.59,662.92,1.68983273]
[1752077986695,1.69116822,663.59,662.93,1.842]
[1752077987500,1.69116822,663.59,662.93,3.53183273]
[1752077987705,1.69116822,663.57,662.96,1.68983273]
[1752077988498,1.69116822,663.56,662.96,1.68983273]
[1752077989000,1.69116822,663.57,662.96,1.68983273]
[1752077989297,1.69116822,663.57,662.95,1.68983273]
[1752077990500,1.69116822,663.57,662.96,1.68983273]
[1752077991296,1.69116822,663.57,662.95,1.68983273]
[1752077991502,2.25143583,663.72,662.96,1.68983273]
[1752077991503,1.69116822,663.56,662.96,1.68983273]
[1752077992002,1.69116822,663.57,662.95,1.68983273]
[1752077992302,1.69116822,663.56,662.96,1.68983273]
[1752077992698,1.69116822,663.55,662.95,1.68983273]
[1752077993300,1.69116822,663.56,662.94,1.68983273]
[1752077993604,1.69116822,663.56,662.95,1.68983273]
[1752077994604,1.69116822,663.56,662.96,1.68983273]
[1752077995300,1.69116822,663.55,662.97,1.68983273]
[1752077996399,1.69116822,663.55,662.98,1.68983273]
[1752077997006,1.69116822,663.54,662.97,1.68983273]
[1752077997507,1.69116822,663.53,662.98,1.68983273]
[1752077997707,1.69116822,663.54,662.98,1.68983273]
[1752077998305,1.69116822,663.53,662.98,1.68983273]
[1752077998510,1.69116822,663.54,662.98,1.68983273]
[1752077998911,1.69116822,663.53,662.98,1.68983273]
[1752077999111,1.69116822,663.52,662.99,1.68983273]
[1752077999511,1.69116822,663.52,663.0,1.68983273]
[1752077999710,1.69116822,663.53,662.99,1.68983273]
[1752078000412,1.69116822,663.52,662.99,1.68983273]
[1752078001812,1.69116822,663.52,663.0,2.411]
[1752078002013,1.69116822,663.52,663.0,4.10083273]
[1752078003014,1.69116822,663.52,663.01,1.68983273]
[1752078003212,1.69116822,663.5,663.03,1.68983273]
[1752078006313,1.69116822,663.49,663.03,1.68983273]
[1752078007313,1.69116822,663.49,663.04,1.68983273]
[1752078008013,1.69116822,663.49,663.03,1.68983273]
[1752078008413,1.69116822,663.49,663.04,1.68983273]
[1752078009519,1.69116822,663.48,663.05,1.68983273]
[1752078014224,1.69116822,663.47,663.06,1.68983273]
[1752078015025,1.69116822,663.56,663.0,2.411]
[1752078018327,1.69116822,663.55,663.0,2.411]
[1752078021323,1.69116822,663.54,663.0,2.411]
[1752078022328,1.69116822,663.53,663.0,2.411]
[1752078024830,1.69116822,663.47,663.05,1.68983273]
[1752078027233,1.69116822,663.46,663.07,1.68983273]
[1752078027631,1.69116822,663.45,663.07,1.68983273]
[1752078028030,1.69116822,663.46,663.07,1.68983273]
[1752078030836,1.69116822,663.45,663.0,2.411]
[1752078031332,1.69625289,663.45,663.0,2.411]
[1752078031536,1.69625289,663.42,663.0,2.411]
[1752078032436,1.69625289,663.43,663.0,2.411]
[1752078033335,1.69625289,663.44,663.0,2.411]
[1752078033535,1.69625289,663.42,663.0,2.411]
[1752078033739,1.69625289,663.42,662.85,1.69564327]
[1752078034636,1.69625289,663.36,662.95,1.69564327]
[1752078034840,1.69625289,663.32,662.91,1.69564327]
[1752078035336,1.69625289,663.33,662.9,1.69564327]
[1752078036339,1.69625289,663.34,662.89,1.69564327]
[1752078036540,1.69625289,663.34,662.9,1.69564327]
[1752078036937,1.69625289,663.35,662.88,1.69564327]
[1752078037142,1.69625289,663.35,662.7,0.26236034]
[1752078037143,1.69625289,663.36,662.86,1.69564327]
[1752078037437,1.69625289,663.37,662.89,1.797]
[1752078038242,1.69625289,663.38,662.89,1.797]
[1752078039540,1.69625289,663.39,662.89,1.797]
[1752078041244,1.69625289,663.4,662.89,1.797]
[1752078042349,1.69625289,663.45,662.89,1.797]
[1752078043446,1.69625289,663.46,662.89,1.797]
[1752078043645,1.69625289,663.45,662.89,1.797]
[1752078045449,1.69625289,663.46,662.89,1.797]
[1752078049853,1.69625289,663.47,662.89,1.797]
[1752078051357,1.69625289,663.48,662.89,1.797]
[1752078051557,1.69625289,663.5,662.89,1.797]
[1752078052057,1.69625289,663.47,662.89,1.797]
[1752078052954,1.69625289,663.46,662.89,1.797]
[1752078053255,1.69625289,663.45,662.89,1.797]
[1752078056259,1.69625289,663.46,662.89,1.797]
[1752078056562,1.69625289,663.45,662.89,1.797]
[1752078059567,1.69625289,663.46,662.89,1.797]
[1752078060964,1.69625289,663.45,662.89,1.797]
[1752078061262,7.91551041,664.59,662.89,1.797]
[1752078061263,1.69625289,663.46,662.89,1.797]
[1752078061467,1.69625289,663.44,662.84,1.69564327]
[1752078063166,1.69625289,663.44,662.85,1.69564327]
[1752078063865,1.69625289,663.44,662.86,2.208]
[1752078064370,1.69625289,663.45,662.86,2.208]
[1752078065473,1.69625289,663.46,662.86,2.208]
[1752078065967,1.69625289,663.45,662.86,2.208]
[1752078070471,1.69625289,663.44,662.86,2.208]
[1752078071574,1.69625289,663.44,662.86,3.90364327]
[1752078073374,2.25143583,663.57,662.86,3.90364327]
[1752078073375,1.69625289,663.43,662.86,3.90364327]
[1752078073672,2.25143583,663.57,662.86,2.208]
[1752078073873,1.69154092,663.43,662.86,3.89920764]
[1752078074175,1.69154092,663.42,662.88,1.69120764]
[1752078075477,1.69154092,663.4,662.9,1.69120764]
[1752078076275,1.69154092,663.4,662.91,1.69120764]
[1752078077173,1.69154092,663.4,662.9,1.69120764]
[1752078077575,1.69154092,663.4,662.91,1.69120764]
[1752078080276,1.69154092,663.4,662.9,1.69120764]
[1752078081378,1.69154092,663.4,662.91,1.69120764]
[1752078082976,1.69154092,663.39,662.91,1.69120764]
[1752078083177,1.69154092,663.4,662.9,1.69120764]
[1752078083477,1.69154092,663.39,662.89,1.69120764]
[1752078083677,1.69154092,663.38,662.89,1.69120764]
[1752078084176,1.69154092,663.38,662.86,2.208]
[1752078084177,1.69154092,663.39,662.87,1.69120764]
[1752078084375,1.69154092,663.36,662.86,2.208]
[1752078086277,1.69154092,663.35,662.86,3.89920764]
[1752078087281,1.69154092,663.35,662.87,1.69120764]
[1752078088282,1.69154092,663.34,662.87,1.69120764]
[1752078089484,1.69154092,663.33,662.88,1.69120764]
[1752078090182,1.69154092,663.33,662.89,1.69120764]
[1752078090484,1.69154092,663.32,662.9,1.69120764]
[1752078091785,1.69486672,663.32,662.9,1.69474647]
[1752078092385,1.69486672,663.37,662.82,1.69474647]
[1752078093285,1.69486672,663.36,662.82,1.69474647]
[1752078094482,1.69486672,663.36,662.83,1.822]
[1752078094784,1.69486672,663.35,662.83,1.822]
[1752078098689,1.6948327,663.35,662.83,1.822]
[1752078099490,1.6948327,663.31,662.83,1.822]
[1752078099690,1.6948327,663.31,662.86,1.69480453]
[1752078100992,1.6948327,663.24,662.83,1.822]
[1752078102489,1.6948327,663.23,662.83,1.822]
[1752078103189,1.6948327,663.24,662.83,1.822]
[1752078105592,1.6948327,663.27,662.83,1.822]
[1752078106293,1.6948327,663.28,662.83,1.822]
[1752078111201,1.6948327,663.35,662.83,1.822]
[1752078111401,1.6948327,663.36,662.83,1.822]
[1752078112599,1.6948327,663.28,662.83,1.822]
[1752078112904,1.6948327,663.25,662.83,1.822]
[1752078113302,1.6948327,663.26,662.83,1.822]
[1752078114204,1.6948327,663.27,662.83,1.822]
[1752078114905,1.6948327,663.26,662.83,1.822]
[1752078115301,1.6948327,663.27,662.83,1.822]
[1752078115903,1.6948327,663.26,662.83,1.822]
[1752078116206,1.6948327,663.27,662.83,1.822]
[1752078116802,1.6948327,663.25,662.83,1.822]
[1752078118207,1.6948327,663.26,662.83,1.822]
[1752078121210,1.6948327,663.21,662.83,1.822]
[1752078122013,1.6948327,663.25,662.83,1.822]
[1752078122411,1.6948327,663.26,662.83,1.822]
[1752078124213,1.6948327,663.24,662.83,1.822]
[1752078124510,1.6948327,663.22,662.83,1.822]
[1752078125816,1.6948327,663.23,662.83,1.822]
[1752078126017,1.6948327,663.22,662.83,1.822]
[1752078127412,1.6948327,663.23,662.83,1.822]
[1752078129413,1.6948327,663.24,662.83,1.822]
[1752078131720,1.6948327,663.22,662.83,1.822]
[1752078133119,1.6948327,663.24,662.83,1.822]
[1752078133717,1.6948327,663.25,662.83,1.822]
[1752078134121,1.6948327,663.24,662.83,1.822]
[1752078134621,1.6948327,663.23,662.83,1.822]
[1752078135620,1.6948327,663.22,662.83,1.822]
[1752078137025,1.6948327,663.23,662.83,1.822]
[1752078137525,1.6948327,663.22,662.83,1.822]
[1752078140324,1.6948327,663.16,662.83,1.822]
[1752078140528,2.25143583,663.27,662.83,1.822]
[1752078140529,1.6948327,663.17,662.83,1.822]
[1752078141324,1.6948327,663.16,662.83,1.822]
[1752078142727,1.6948327,663.16,662.5,1.69480453]
[1752078145329,1.6948327,663.15,662.5,1.69480453]
[1752078145827,1.6948327,663.15,662.51,2.135]
[1752078148331,1.6948327,663.15,662.51,3.82980453]
[1752078148529,1.6948327,663.15,662.51,2.135]
[1752078149229,1.6948327,663.15,662.51,3.82980453]
[1752078150433,1.6948327,663.14,662.51,3.82980453]
[1752078152331,1.6948327,663.14,662.52,1.69480453]
[1752078153335,1.6948327,663.13,662.52,1.69480453]
[1752078154129,1.6948327,663.17,662.51,2.135]
[1752078156433,1.6948327,663.16,662.51,2.135]
[1752078158338,1.6948327,663.15,662.51,2.135]
[1752078159435,1.6948327,663.14,662.51,2.135]
[1752078162438,1.6948327,663.13,662.51,2.135]
[1752078162641,1.6948327,663.14,662.51,2.135]
[1752078163136,1.6948327,663.15,662.51,2.135]
[1752078163839,1.6948327,663.13,662.51,2.135]
[1752078164041,1.6948327,663.13,662.51,3.82980453]
[1752078164237,1.6948327,663.12,662.51,3.82980453]
[1752078165338,1.6948327,663.12,662.52,1.69480453]
[1752078166137,1.69202626,663.12,662.52,1.69263988]
[1752078166342,1.69202626,663.19,662.51,2.135]
[1752078167437,1.69202626,663.18,662.51,2.135]
[1752078168337,1.69202626,663.17,662.51,2.135]
[1752078170341,1.69202626,663.16,662.51,2.135]
[1752078171245,1.69202626,663.15,662.51,2.135]
[1752078171445,1.69202626,663.14,662.51,2.135]
[1752078171942,1.69430944,663.14,662.51,2.135]
[1752078172241,1.69430944,663.12,662.51,2.135]
[1752078174249,1.69430944,663.01,662.57,1.69492882]
[1752078175744,1.69430944,662.99,662.55,1.69492882]
[1752078176046,1.69430944,663.0,662.54,1.69492882]
[1752078180348,1.69430944,663.0,662.53,1.69492882]
[1752078181554,1.69430944,662.99,662.55,1.69492882]
[1752078181851,1.69430944,662.99,662.56,1.69492882]
[1752078182752,1.69430944,662.99,662.55,1.69492882]
[1752078183856,1.69430944,662.99,662.56,1.69492882]
[1752078184151,1.69430944,662.99,662.55,1.69492882]
[1752078184351,1.69430944,662.99,662.56,1.69492882]
[1752078185155,1.69430944,662.99,662.55,1.69492882]
[1752078185352,1.69430944,662.99,662.56,1.69492882]
[1752078185855,1.69430944,662.98,662.57,1.69492882]
[1752078186752,1.69430944,662.98,662.51,2.135]
[1752078186753,1.69430944,662.99,662.56,1.69492882]
[1752078187053,1.69430944,662.99,662.57,1.69492882]
[1752078187854,1.69430944,662.98,662.57,1.69492882]
[1752078188151,1.69430944,662.99,662.57,1.69492882]
[1752078189054,1.69430944,662.98,662.57,1.69492882]
[1752078190157,1.69430944,662.98,662.58,1.69492882]
[1752078191459,1.69430944,662.97,662.57,1.69492882]
[1752078192457,1.69430944,662.97,662.58,1.69492882]
[1752078192757,1.69430944,662.97,662.57,1.69492882]
[1752078192961,1.69430944,662.97,662.58,1.69492882]
[1752078193561,1.69430944,662.97,662.57,1.69492882]
[1752078193862,1.69430944,662.97,662.59,2.546]
[1752078195258,1.69485408,662.97,662.59,2.546]